Cogmind - Beta 15 @@@ ROGUE MODE // 2025.06.09 @ 04:29:18 Player: KamenAya Result: Destroyed by Y-45 Defender with Beam Rifle Performance ------------- Evolutions (2) 1000 Regions Visited (3) 600 Robots Destroyed (53) 265 Value Destroyed (1749) 1749 Prototype IDs (1) 20 Alien Tech Used (0) 0 Bonus (0) 0 TOTAL SCORE: 3634 Bonus ------- None Cogmind --------- Core Integrity 0/550 Matter 300/300 Energy 100/100 System Corruption 7% Temperature Cool (9) Movement Core (50) Location -8/Materials Parts ------- > --- POWER (1) -------- (None) > --- PROPULSION (3) --- (None) > --- UTILITY (4) ------ (None) > --- WEAPON (3) ------- (None) > --- INVENTORY (5) ---- Reinforced Ion Engine Heavy Deuterium Engine Peak State ------------ > --- POWER ------------ Heavy Deuterium Engine > --- PROPULSION ------- Aluminum Leg Aluminum Leg > --- UTILITY ---------- Heat Sink Heat Sink Visual Processing Unit Hardened Light Armor Plating > --- WEAPON ----------- Particle Cannon Heavy Ion Cannon Heavy Ion Cannon > --- INVENTORY -------- Reinforced Ion Engine Light Deuterium Engine Heavy Deuterium Engine Small Laser Autogun [Rating: 24] Favorites ----------- Power Reinforced Ion Engine Engine Reinforced Ion Engine Power Core Light Nuclear Core Propulsion Armored Wheel Leg Aluminum Leg Wheel Armored Wheel Flight Unit Flight Unit Utility Heat Sink Device Heat Sink Processor Visual Processing Unit Protection Hardened Light Armor Plating Weapon Autogun Energy Cannon Heavy Ion Cannon Ballistic Gun Autogun Ballistic Cannon Flak Cannon Build | -11 -10 -9 -8 ------- Run | Yrd Mat Mat Mat Slots Evolved 4 | . . 2 2 Power . | . . . . Propulsion 1 | . . . 1 Utility 2 | . . 2 . Weapon 1 | . . . 1 Parts Attached 40 | 6 3 11 20 Power 7 | 1 1 2 3 Engine 5 | 1 . 2 2 Core 2 | . 1 . 1 Reactor . | . . . . Propulsion 12 | 2 . 2 8 Treads . | . . . . Leg 5 | . . . 5 Wheel 4 | 2 . 2 . Hover . | . . . . Flight 3 | . . . 3 Utility 7 | 1 1 3 2 Device 5 | 1 1 1 2 Storage . | . . . . Processor 1 | . . 1 . Hackware . | . . . . Protection 1 | . . 1 . Artifact . | . . . . Weapon 14 | 2 1 4 7 Energy Gun . | . . . . Energy Cannon 3 | . . . 3 Ballistic Gun 9 | 2 . 4 3 Ballistic Cannon 1 | . . . 1 Launcher . | . . . . Special Weapon . | . . . . Impact Weapon . | . . . . Slashing Weapon . | . . . . Piercing Weapon . | . . . . Special Melee Weapon 1 | . 1 . . Unidentified Prototypes 1 | . . . 1 Parts Lost 28 | . 6 1 21 Power 3 | . 1 . 2 Propulsion 8 | . 2 . 6 Utility 7 | . . 1 6 Weapon 10 | . 3 . 7 Highest Loss Streak 9 | . 3 1 9 To Critical Strikes . | . . . . Average Backups 3 | 1 1 3 3 Power 1 | . 1 . 1 Propulsion . | . . . . Utility . | . . . . Weapon 1 | . . 2 1 Tool/Special . | . . . . Unused Backups 3 | . . . 3 Power 2 | . . . 2 Propulsion . | . . . . Utility . | . . . . Weapon 1 | . . . 1 Tool/Special . | . . . . Average Slot Usage (%) 75 | . 83 71 72 Engine 8 | . 12 9 6 Core 1 | . 1 . 1 Leg 6 | . . . 10 Wheel 11 | . 21 16 5 Device 16 | . 23 20 12 Processor 4 | . . 3 7 Protection 3 | . . . 6 Energy Cannon 5 | . . . 9 Ballistic Gun 15 | . 23 20 10 Ballistic Cannon 1 | . . . 1 Peak Build Rating 24 | 8 9 16 24 Average Rating 14 | 6 8 12 18 On Entrance 7 | . 8 4 16 Naked Turns 3 | . . . 3 Heaviest Build 38 | 10 11 23 38 Greatest Support 49 | 20 20 24 49 Greatest Overweight (x) 8 | . 2 4 8 Average Overweight (x) . | . . . . Largest Inventory Capacity 5 | 5 5 5 5 Average Capacity 5 | 5 5 5 5 Most Carried 5 | 5 3 5 5 Average Carried 3 | 1 1 3 3 Final Capacity 5 | 5 5 5 5 Final Carried 5 | 1 1 5 2 Class Distribution -------------------- 72% | Mutant 18% | Scavenger-Tank 8% | Tank Dominant Class ---------------- Mutant | -10/Materials Mutant | -9/Materials Mutant | -8/Materials Resources | -11 -10 -9 -8 ----------- Run | Yrd Mat Mat Mat Matter Collected 1482 | 284 246 259 693 Remotely 82 | . . . 82 Salvage Created 2024 | 102 464 477 981 Parts 107 | 5 27 29 46 Haulers Intercepted . | . . . . Recyclers Shooed 3 | 1 1 . 1 Parts Field Recycled . | . . . . Retrieved Matter . | . . . . Parts Self-Destructed . | . . . . Prevented . | . . . . Kills | -11 -10 -9 -8 ------- Run | Yrd Mat Mat Mat Combat Hostiles Destroyed 47 | . 10 10 27 Melee 1 | . . . 1 Guns 36 | . 10 10 16 Cannons 9 | . . . 9 Classes Destroyed 10 | 2 3 2 3 Worker 1 | . . . 1 Tunneler 1 | 1 . . . Recycler 1 | 1 . . . Operator 1 | . 1 . . Watcher 2 | . 1 1 . Swarmer 9 | . . . 9 Grunt 27 | . 10 7 10 Brawler 1 | . . 1 . Sentry 8 | . . 2 6 Specialist 2 | . . . 2 Best Kill Streak 7 | 2 6 4 7 Combat Bots Only 7 | . 6 4 7 Max Kills in Single Turn 2 | 1 1 1 2 Gunslinging . | . . . . Exploded . | . . . . Melee 1 | . . . 1 Uniques/NPCs Destroyed . | . . . . Combat | -11 -10 -9 -8 -------- Run | Yrd Mat Mat Mat Hostile Shots Fired 354 | . 68 27 259 Missed 87 | . 21 11 55 Hits 267 | . 47 16 204 Projectile 267 | . 47 16 204 Critical Strikes 4 | . . . 4 Damage Taken 3574 | . 587 204 2783 Core 811 | . 198 53 560 Absorbed by Shields . | . . . . Core Remaining (%) 68 | 100 20 86 . Volleys Fired 170 | 4 47 23 96 Largest 3 | 2 2 2 3 Hottest 198 | 40 40 46 198 Shots Fired 330 | 8 82 46 194 Gun 255 | 8 82 46 119 Cannon 75 | . . . 75 Launcher . | . . . . Special . | . . . . Kinetic 282 | 8 82 46 146 Thermal 48 | . . . 48 Explosive . | . . . . Electromagnetic . | . . . . Robot Hit Streak 14 | 5 14 13 9 Robot Miss Streak 16 | 3 2 3 16 Penetration Max . | . . . . Secondary Targets 3 | . . 1 2 Max Gunslinging Chain 1 | . . 1 1 Shots Hit Robots 218 | 5 56 28 129 Core Hits 109 | 3 22 17 67 Critical Kills 1 | . 1 . . Critical Parts Destroyed . | . . . . Critical Strikes 2 | . 1 . 1 Destroy 2 | . 1 . 1 Melee Attacks . | . . . . Impact . | . . . . Slashing . | . . . . Piercing . | . . . . Sneak Attacks . | . . . . Combat Hostiles . | . . . . Follow-up Attacks . | . . . . Damage Inflicted 3544 | 69 720 420 2335 Guns 2287 | 69 710 420 1088 Cannons 1229 | . . . 1229 Explosions . | . . . . Melee . | . . . . Ramming 28 | . 10 . 18 Kinetic 2746 | 69 710 420 1547 Thermal 770 | . . . 770 Explosive . | . . . . Electromagnetic . | . . . . Impact . | . . . . Slashing . | . . . . Piercing . | . . . . Highest Corruption 7 | . . . 7 Average Corruption 4 | . . . 4 Corruption Purged . | . . . . Corruption Blocked . | . . . . Effects 9 | . . . 9 Message Errors 3 | . . . 3 Matter Fused 2 | . . . 2 Heat Flow Errors 1 | . . . 1 Parts Rejected 1 | . . . 1 Data Loss (minor) 1 | . . . 1 Misfires 1 | . . . 1 Overload Shots . | . . . . Overflow Damage . | . . . . Projectiles . | . . . . Explosions . | . . . . Melee . | . . . . Knockbacks 17 | . . . 17 Impact . | . . . . Kinetic 14 | . . . 14 Secondary 3 | . . . 3 Self-Inflicted Damage 4 | . 4 . . Shots . | . . . . Rammed 3 | . 3 . . Targets Rammed 16 | . 3 . 13 Kicked 13 | . . . 13 Crushed . | . . . . Highest Temperature 553 | . . 3 553 Average Temperature 117 | . . 3 118 Received Heat Transfer 1101 | . 324 93 684 Effects 6 | . . . 6 Shutdowns 1 | . . . 1 Energy Bleed 1 | . . . 1 Interference 3 | . . . 3 Damage (core) 1 | . . . 1 Siege Activations . | . . . . Martial Activations . | . . . . Shielding Activations . | . . . . Robots Disrupted . | . . . . Combat Hostiles . | . . . . Robots Corrupted . | . . . . Combat Hostiles . | . . . . Parts Fried . | . . . . Impact Corruptions . | . . . . Robots Melted 1 | . . . 1 Combat Hostiles 1 | . . . 1 Parts Melted 9 | . . . 9 Heat Transferred 1147 | . . . 1147 Parts Sabotaged . | . . . . Parts Stolen . | . . . . Parts Stripped . | . . . . Power Chain Reactions . | . . . . Alert | -11 -10 -9 -8 ------- Run | Yrd Mat Mat Mat Maximum Alert Level 1 | . . 1 1 Low Security (%) 84 | 100 100 90 74 Level 1 15 | . . 9 25 Level 2 . | . . . . Level 3 . | . . . . Level 4 . | . . . . Level 5 . | . . . . High Security . | . . . . Max Security . | . . . . Peak Influence 331 | 10 158 211 331 Initial 63 | . . 37 63 Average 118 | 1 53 135 150 Influence Increases 1464 | 10 353 274 827 Destroy 0b10 Robot/C 940 | . 200 200 540 Destroy 0b10 Robot/NC 30 | 10 10 5 5 Destroy Leader 234 | . 52 52 130 Destroy Structure 20 | . 1 2 17 Partial Spotted 30 | . 15 . 15 Lose Combat Pursuer 210 | . 75 15 120 Influence Decreases 1201 | 10 265 211 715 Entered New Map 139 | . . 51 88 Time Decay 792 | 10 205 150 427 Lost Part 270 | . 60 10 200 Squads Dispatched 10 | . 3 2 5 Investigation . | . . . . Extermination . | . . . . Reinforcement 10 | . 3 2 5 Assault . | . . . . Garrison . | . . . . Intercept . | . . . . Searches Triggered . | . . . . Construction Impeded 1 | . . . 1 Haulers Reinforced . | . . . . Active Scanning Responses . | . . . . Cargo Convoy Interrupts . | . . . . Stealth | -11 -10 -9 -8 --------- Run | Yrd Mat Mat Mat Distress Signals 8 | . 1 2 5 Communications Jammed . | . . . . Distress Signals . | . . . . Times Spotted 87 | . 19 14 54 Peak Tracking Total 8 | . 7 7 8 Tactical Retreats 6 | . 2 1 3 Traps | -11 -10 -9 -8 ------- Run | Yrd Mat Mat Mat Traps Triggered 2 | . 1 . 1 Indirectly . | . . . . Trap Hack Attempts . | . . . . Triggered . | . . . . Disarmed . | . . . . Reprogrammed . | . . . . Reused . | . . . . Traps Extracted . | . . . . Installed . | . . . . Triggered . | . . . . Machines | -11 -10 -9 -8 ---------- Run | Yrd Mat Mat Mat Machines Disabled . | . . . . Max in Single Turn . | . . . . Machines Repaired . | . . . . Machines Dismantled . | . . . . Machines Sabotaged . | . . . . Overloaded Fab Kills . | . . . . Hacking | -11 -10 -9 -8 --------- Run | Yrd Mat Mat Mat Machines Accessed . | . . . . Terminals . | . . . . Fabricators . | . . . . Repair Stations . | . . . . Recycling Units . | . . . . Scanalyzers . | . . . . Garrison Access . | . . . . Total Hacks . | . . . . Successful . | . . . . Failed . | . . . . Catastrophic . | . . . . Database Lockouts . | . . . . Manual . | . . . . Terminals . | . . . . Fabricators . | . . . . Repair Stations . | . . . . Recycling Units . | . . . . Scanalyzers . | . . . . Garrison Access . | . . . . Terminal Hacks . | . . . . Fabricator Hacks . | . . . . Repair Station Hacks . | . . . . Recycling Unit Hacks . | . . . . Scanalyzer . | . . . . Garrison Access Hacks . | . . . . Unauthorized Hacks . | . . . . Terminals . | . . . . Fabricators . | . . . . Repair Stations . | . . . . Recycling Units . | . . . . Scanalyzers . | . . . . Garrison Access . | . . . . Data Cores Recovered . | . . . . Used . | . . . . Hacking Detections . | . . . . Full Trace Events . | . . . . Feedback Events . | . . . . Feedback Blocked . | . . . . Robot Schematics Acquired . | . . . . Robots Built . | . . . . Authchips . | . . . . Time . | . . . . Total Robot Build Rating . | . . . . Part Schematics Acquired . | . . . . Parts Built . | . . . . Authchips . | . . . . Time . | . . . . Total Part Build Rating . | . . . . Parts Repaired . | . . . . Time . | . . . . Parts Recycled . | . . . . Recycled Matter . | . . . . Retrieved Matter . | . . . . Retrieved Components . | . . . . Parts Scanalyzed . | . . . . Part Schematics Acquired . | . . . . Parts Damaged . | . . . . Bothacking | -11 -10 -9 -8 ------------ Run | Yrd Mat Mat Mat Used RIF Installer . | . . . . Robots Hacked . | . . . . Non-combat . | . . . . Combat . | . . . . Robot Hacks Applied . | . . . . Relay Couplers Released . | . . . . Fabnet Peak Effective % . | . . . . Robots Rewired . | . . . . Allies Hacked . | . . . . Hacks Repelled . | . . . . Allies | -11 -10 -9 -8 -------- Run | Yrd Mat Mat Mat Total Allies . | . . . . Largest Group . | . . . . Highest-Rated Group . | . . . . Highest-Rated Ally . | . . . . Total Orders . | . . . . Ally Attacks . | . . . . Total Damage . | . . . . Kills . | . . . . Allies Corrupted . | . . . . Allies Melted . | . . . . Intel | -11 -10 -9 -8 ------- Run | Yrd Mat Mat Mat Active Infowar (turns) 1741 | 58 494 285 904 Optics 1001 | . . 97 904 Terrain 740 | 58 494 188 . Robot Analysis Total . | . . . . Derelict Logs Recovered . | . . . . Drone Launches . | . . . . Drone Recoveries . | . . . . Exploration | -11 -10 -9 -8 ------------- Run | Yrd Mat Mat Mat Turns Passed 2074 | 88 511 306 1169 Spaces Moved 1117 | 33 338 216 530 Core 137 | 10 71 43 13 Treads . | . . . . Legs 297 | . . . 297 Wheels 683 | 23 267 173 220 Hover . | . . . . Flight . | . . . . Fastest Speed 50 | 50 50 50 90 Average Speed 114 | 70 89 93 141 Slowest Speed 450 | 80 150 250 450 Overloaded Moves . | . . . . Propulsion Burnouts . | . . . . Robots Hopped . | . . . . Potential Cave-ins . | . . . . Cave-ins Triggered 1 | . . . 1 Exploration Rate (%) 27 | 4 41 24 42 Regions Visited 3 Branch Regions . Pre-discovered Areas . | . . . . Known Exits Taken . | . . . . Unknown Exits Taken 3 | 1 1 1 . Scrap Searched . | . . . . Spaces Dug . | . . . . Terrain Destroyed 14 | . . . 14 Melee . | . . . . Projectile 14 | . . . 14 AOE . | . . . . Terrain Rammed . | . . . . Walls Destroyed . | . . . . Machines Disabled . | . . . . Actions | -11 -10 -9 -8 --------- Run | Yrd Mat Mat Mat Total 1625 | 88 461 283 793 Wait 229 | 40 67 18 104 Move 1114 | 32 337 215 530 Hop . | . . . . Pick Up 41 | 6 3 13 19 Fast Attach 3 | 1 . 2 . Attach 33 | 5 2 7 19 Detach 1 | . . . 1 Swap 5 | . 1 2 2 Drop 13 | . 1 3 9 Fire 170 | 4 47 23 96 Melee . | . . . . Ram 3 | . 3 . . Kick 13 | . . . 13 Crush . | . . . . Escape Stasis . | . . . . Rewire . | . . . . Trap . | . . . . Miscellaneous . | . . . . Route ------- -11/Scrapyard -10/Materials -9/Materials -8/Materials History --------- Turn | Location | Event 38 | -11/Scrapyard | Discovered new exit (range 14) 89 | -11/Scrapyard | Entered Materials 310 | -10/Materials | Build established: Mutant 399 | -10/Materials | Discovered new exit (range 4) 514 | -10/Materials | Lost 3 parts (2n1w) 584 | -10/Materials | Core integrity fell below 50% 600 | -10/Materials | Entered another Materials area 600 | -9/Materials | Evolved 2 slots: Utility x2 623 | -9/Materials | Lost 3 parts (1p2w) 890 | -9/Materials | Discovered new exit (range 8) 906 | -9/Materials | Entered another Materials area 906 | -8/Materials | Evolved 2 slots: Propulsion x1, Weapon x1 1276 | -8/Materials | Destroyed 7 combat bots 1615 | -8/Materials | Build established: Scavenger-Tank 1757 | -8/Materials | Core integrity fell below 50% 1810 | -8/Materials | Crushed by falling debris 1841 | -8/Materials | Lost 9 parts (1p2n4u2w) 2033 | -8/Materials | Core integrity fell below 20% 2054 | -8/Materials | Build established: Mutant 2075 | -8/Materials | Destroyed by Y-45 Defender with Beam Rifle Last Messages --------------- 02057_ Lgt. Nuclear Core destroyed. 02057_ Imp. Aluminum Leg destroyed. 02059_ S-10 Pest destroyed. 02062_ ALERT: Hostiles spotted, dispatching reinforcements to Terminal M010. 02064_ R-06 Scavenger collects Flight Unit. 02066_ Lgt. Assault Rifle destroyed. 02067_ Kicked S-10 Pest. 02067_ R-06 Scavenger collects Lgt. Ion Engine. 02068_ Kicked S-10 Pest. 02068_ C-30 ARC bursts open, deploying its payload. 02068_ L-31 Rogue unfolds itself. 02068_ G-47 Trooper unfolds itself. 02068_ K-01 Serf collects debris. 02069_ Kicked S-10 Pest. 02070_ R-06 Scavenger collects Lgt. Assault Rifle. 02070_ Kicked S-10 Pest. 02072_ Imp. Carbon-fiber Leg destroyed. Map ----- +----------------------------------------------------+ | ???????????????????????????????????????????????# | | ???????????????????????????????????????????????# | | ???????????????????????????????????????????????#[ | | ???????????????????????????????????????????????# | | ???????????????????????????????????????????????# | | ???????????????????????????????????????????????# | | ???????????????????????????????????????????????# | | ???????????????????????????????????????????????# | | ???????????????????????????????????????????????### | | ????????????????????????????##??????????????????## | | ???????????????????????????? ??????????????????# | | ???????????????????????????? ??????????????????# | | ???????????????????????????? #??????????######## | | ????????????????????????????# #??????????# # | | ???????????????###??????????# #??????????# "T" #* | | ????????????# ?????????# #??????????# # | | ???????????## """?????????# #?########## # | | ???????????# """ ????????# #?# """ # # | | ????????????# """ ????????# #?# """"" # ## | | ????????????? ???????# #?# """"" #+##+#### | | ????????????# """ ######## ### """"" # | | ????????????# = """ / !=! + """ + | | ????????????# """ ######=##### # | | ????????????? ?????#*#???# ####+#### | | ????????????#####+#########r#???# # #? | | ??????????t gglY @s #???# # #? | | ?????????? g##########???########## #? | | ?????????????????????????????????????????# #? | | ?????????????????????????????????????????# "T" #? | | ?????????????????????????????????????????# """ #? | | ?????????????????????????????????????????########? | | ?????????????????????????????????????????????????? | | ?????????????????????????????????????????????????? | | ?????????????????????????????????????????????????? | | ?????????????????????????????????????????????????? | | ?????????????????????????????????????????????????? | | ?????????????????????????????????????????????????? | | ?????????????????????????????????????????????????? | | ?????????????????????????????????????????????????? | | ?????????????????????????????????????????????????? | | ??????????????????????????????????????????????#### | | ??????????????????????????????????????????? | | ??????????????????????????????????????????? | | ??????????????????????????????????????????? | | ???????????????????????????????????????????####### | | ???????????????????????????????????????????? | | ???????????????????????????????????????????? | | ?????????????????????????????????????????? """"" | | ????????????????????????????????????? ??""""""""" | | ???????????????????????????????????? """ """ | +----------------------------------------------------+ Best States ------------- Heat Dissipation 51 Energy Generation 18 Energy Capacity 310 Matter Stores 300 Matter Capacity 300 Sight Range 18 Terrain Scan Range 16 Terrain Scan Density 10 Armor Coverage 150 Evasion (%) 55 Item Schematics ----------------- None Robot Schematics ------------------ None Fabricated ------------ Nothing Repaired ---------- Nothing Alien Tech Used ----------------- None Achievements -------------- None Challenges ------------ None Game ------ Seed ColdActuatorMantle Manual? 0 Play Time 00:21:48 Cumulative 10.3 hours Start 2025.06.09 @ 04:10:27 End 2025.06.09 @ 04:29:18 Sessions 1 Manual Loads 0 Difficulty Rogue Special Mode None Game No. 18 Rogue 18 Adventurer 0 Explorer 0 Win Type - Total 0 Types 0/0/0/0/0/0/0/0/0/0 Lore% 5 Gallery% 17 Achievement% 16 Wizard Run 0 Options --------- Layout 1 ASCII 0 Keyboard 0 Movement Mouse Keybinds 0 Fullscreen 2 Font 24/Smallcaps Map View 50x35 Zoom Use 0% Tactical HUD 1 Map Filters NONE Filters NONE Steam 1 RUN: 63df7396-0b38-4ded-9fe1-eb60dbf219e2